{"text_format":"1","workbook":"xlsx","n_sheets":3,"sheets":["Cijferoverzicht","Overzicht leerling","Cijfercriteria"],"not_rendered":{"charts":1,"images":1,"macros":1,"external_links":0,"defined_names":11,"comments":0,"pivot_tables":0},"unopened":[],"bounds":{"document_bytes":16777216,"sheet_cells":100000,"rows_first":2000,"rows_last":500,"rows_between":2000,"halvings":0,"cell_chars":16384,"cell_head_chars":4096},"cells_cut":0,"cells_raw":0,"read":"whole","date_system":"1900"}

{"sheet":"Cijferoverzicht","index":0,"n_rows":8,"n_cols":9,"rows_kept":8,"cut":false,"hidden":false,"merged":[]}
[null,"Naam les"]
[null,"Naam leraar",null,null,null,"Datum opdracht","2011-01-18","2011-01-25","2011-02-01"]
[null,null,null,null,"Totaal mogelijke punten",{"$f":"SUM(TotaalaantalPuntenOpdracht[#Data])","v":90},20,20,50]
[null,"Naam leerling","Prestaties","Cijfer","%","Totaal behaalde punten","Klassikale schrijfopdracht 1","Klassikale schrijfopdracht 2","Opstel"]
[null,"Leerling 1",{"$f":"Leerlinggegevens[[#This Row],[Totaal behaalde punten]]","v":90},{"$f":"IFERROR(VLOOKUP(Leerlinggegevens[[#This Row],[%]],Cijfertabel[],2,TRUE),\"\")","v":"A+"},{"$f":"IFERROR(Leerlinggegevens[[#This Row],[Totaal behaalde punten]]/TotaalAantalPunten,\"\")","v":1},{"$f":"IFERROR(SUM(Leerlinggegevens[[#This Row],[Klassikale schrijfopdracht 1]]:OFFSET(F5,,COUNTA(TotaalaantalPuntenOpdracht[]))),\"\")","v":90},20,20,50]
[null,"Leerling 2",{"$f":"Leerlinggegevens[[#This Row],[Totaal behaalde punten]]","v":60},{"$f":"IFERROR(VLOOKUP(Leerlinggegevens[[#This Row],[%]],Cijfertabel[],2,TRUE),\"\")","v":"D"},{"$f":"IFERROR(Leerlinggegevens[[#This Row],[Totaal behaalde punten]]/TotaalAantalPunten,\"\")","v":0.66666666666666663},{"$f":"IFERROR(SUM(Leerlinggegevens[[#This Row],[Klassikale schrijfopdracht 1]]:OFFSET(F6,,COUNTA(TotaalaantalPuntenOpdracht[]))),\"\")","v":60},10,10,40]
[null,"Leerling 3",{"$f":"Leerlinggegevens[[#This Row],[Totaal behaalde punten]]","v":75},{"$f":"IFERROR(VLOOKUP(Leerlinggegevens[[#This Row],[%]],Cijfertabel[],2,TRUE),\"\")","v":"B"},{"$f":"IFERROR(Leerlinggegevens[[#This Row],[Totaal behaalde punten]]/TotaalAantalPunten,\"\")","v":0.83333333333333337},{"$f":"IFERROR(SUM(Leerlinggegevens[[#This Row],[Klassikale schrijfopdracht 1]]:OFFSET(F7,,COUNTA(TotaalaantalPuntenOpdracht[]))),\"\")","v":75},20,15,40]
[null,"Gemiddeld(e) cijfer/score",null,{"$f":"IFERROR(VLOOKUP(Leerlinggegevens[[#Totals],[%]],Cijfertabel[],2,TRUE),\"\")","v":"B"},{"$f":"SUBTOTAL(101,Leerlinggegevens[%])","v":0.83333333333333337},{"$f":"SUBTOTAL(101,Leerlinggegevens[Totaal behaalde punten])","v":75},{"$f":"SUBTOTAL(101,Leerlinggegevens[Klassikale schrijfopdracht 1])","v":16.666666666666668},{"$f":"SUBTOTAL(101,Leerlinggegevens[Klassikale schrijfopdracht 2])","v":15},{"$f":"SUBTOTAL(101,Leerlinggegevens[Opstel])","v":43.333333333333336}]

{"sheet":"Overzicht leerling","index":1,"n_rows":51,"n_cols":8,"rows_kept":51,"cut":false,"hidden":false,"merged":[[7,1,7,3],[11,1,11,2],[35,1,44,7],[0,0,0,4]]}
["Naam van uw school"]
[null,{"$f":"NaamLeraar","v":"Naam leraar"}]
[null,{"$f":"NaamLes","v":"Naam les"}]
[null,"Vorderingen tot nu toe"]
[null,"2011-09-22"]
[]
[null,"Naam leerling:"]
[null,"Leerling 3"]
[]
[]
[null,"Ranglijst van leerlingen",null,"Cijfer (als letter)","Percentage","Punten van leerling","Totaal aantal punten","Gemiddelde"]
[null,{"$f":"IFERROR(_xlfn.RANK.EQ(VLOOKUP(B8,Leerlinggegevens[],5,FALSE),Leerlinggegevens[Totaal behaalde punten]) & \" van \"&COUNTA(Leerlinggegevens[Naam leerling]) & \" studenten\",\"\")","v":"2 van 3 studenten"},null,{"$f":"IFERROR(VLOOKUP(NaamLeerling,Leerlinggegevens[],3,FALSE),\"\")","v":"B"},{"$f":"IFERROR(VLOOKUP(NaamLeerling,Leerlinggegevens[],4,FALSE),\"\")","v":0.83333333333333337},{"$f":"IFERROR(VLOOKUP(NaamLeerling,Leerlinggegevens[],5,FALSE),\"\")","v":75},{"$f":"TotaalAantalPunten","v":90},{"$f":"IFERROR(VLOOKUP(E12,Cijfertabel[],3,TRUE),\"\")","v":3}]
[]
[]
[]
[]
[]
[]
[]
[]
[]
[]
[]
[]
[]
[]
[]
[]
[]
[]
[]
[]
[]
[]
[null,"Opmerkingen leraar"]
[]
[]
[]
[]
[]
[]
[]
[]
[]
[]
[]
[]
[null,"Handtekening ouder/verzorger (indien vereist)"]
[]
[]
[null,"X",null,null,null,"Datum:"]

{"sheet":"Cijfercriteria","index":2,"n_rows":20,"n_cols":4,"rows_kept":20,"cut":false,"hidden":false,"merged":[[4,1,4,3],[2,1,2,4]]}
[null,"Cijfer (als letter) berekenen"]
[]
[null,"Voer in de onderstaande tabel voor elke letter de percentages in om de sjabloon aan uw criteria aan te passen."]
[]
[null,"TABEL MET CIJFERS & GEMIDDELDEN\n(Hiermee worden de cijfers van de leerling op het blad Cijferoverzicht berekend)"]
[null,"Score","Behaald cijfer (als letter)","Gemiddelde"]
[null,0,"F",0]
[null,0.6,"D-",0.67]
[null,0.63,"D",1]
[null,0.67,"D+",1.33]
[null,0.7,"C-",1.67]
[null,0.73,"C",2]
[null,0.77,"C+",2.33]
[null,0.8,"B-",2.67]
[null,0.83,"B",3]
[null,0.87,"B+",3.33]
[null,0.9,"A-",3.67]
[null,0.93,"A",4]
[null,0.97,"A+",4]
[null,"Score en cijfergemiddelde moeten in oplopende volgorde worden ingevoerd."]